bitfinex/quotes_SOLUSD_20240809
["timestamp","ask_amount","ask_price","bid_price","bid_amount"]
[1723205146305,21.9551,156.33,156.24,27.52]
[1723205146306,21.9551,156.33,156.31,27.52]
[1723205146701,15.5713,156.33,156.32,27.52]
[1723205147277,15.5713,156.33,156.31,27.52]
[1723205148008,15.5713,156.33,156.3,27.52]
[1723205148385,15.5713,156.33,156.25,0.25098]
[1723205148386,15.5713,156.33,156.29,27.52]
[1723205148807,15.5713,156.33,156.3,27.52]
[1723205148989,15.5713,156.33,156.32,27.52]
[1723205149185,22.0185,156.37,156.32,27.52]
[1723205149383,15.5992,156.37,156.36,27.52]
[1723205149591,15.5992,156.44,156.36,27.52]
[1723205149796,15.5992,156.44,156.41,27.52]
[1723205150092,15.5992,156.44,156.43,27.52]
[1723205150291,15.5992,156.44,156.38,1.27870317]
[1723205150292,15.5992,156.44,156.42,27.52]
[1723205150494,15.5992,156.44,156.43,27.52]
[1723205150691,15.5992,156.44,156.42,27.52]
[1723205151006,15.5992,156.44,156.39,27.52]
[1723205151314,15.5992,156.44,156.4,27.52]
[1723205151610,15.5992,156.44,156.42,27.52]
[1723205152305,15.5992,156.44,156.43,27.52]
[1723205152511,22.79682242,156.5,156.43,27.52]
[1723205152687,22.79682242,156.5,156.45,27.52]
[1723205152688,32.8133717,156.5,156.45,27.52]
[1723205152888,32.8133717,156.5,156.46,27.52]
[1723205153088,32.8133717,156.5,156.45,27.52]
[1723205153511,32.8133717,156.5,156.44,27.52]
[1723205153712,32.8133717,156.5,156.43,27.52]
[1723205153713,60.3333717,156.5,156.43,27.52]
[1723205153893,20.0,156.49,156.43,27.52]
[1723205154210,1.72354195,156.48,156.42,27.52]
[1723205154405,45.12549,156.48,156.42,27.52]
[1723205155083,0.12549,156.48,156.42,27.52]
[1723205155407,20.0,156.49,156.43,27.52]
[1723205155584,1.59813402,156.48,156.43,27.52]
[1723205156711,1.59813402,156.48,156.36,0.12549]
[1723205156712,20.0,156.49,156.44,27.52]
[1723205157412,20.0,156.49,156.45,27.52]
[1723205157887,20.0,156.49,156.44,27.52]
[1723205160205,22.92231242,156.5,156.48,27.52]
[1723205160206,22.79682242,156.5,156.48,27.52]
[1723205160400,16.1291,156.5,156.49,27.52]
[1723205160713,23.082,156.55,156.49,27.52]
[1723205160892,23.082,156.55,156.5,27.52]
[1723205161101,50.602,156.55,156.48,27.52]
[1723205162113,23.082,156.55,156.49,27.52]
[1723205162493,23.082,156.55,156.52,27.52]
[1723205162811,32.09189603,156.59,156.54,27.52]
[1723205163126,15.9321,156.59,156.56,27.52]
[1723205163292,0.8204782,156.61,156.58,27.52]
[1723205163495,0.8204782,156.61,156.6,27.52]
[1723205164386,0.8204782,156.61,156.52,1.27696159]
[1723205164387,28.3404782,156.61,156.49,45.12549]
[1723205164606,0.8204782,156.61,156.57,27.52]
[1723205164810,0.8204782,156.61,156.51,0.12549]
[1723205165010,0.8204782,156.61,156.53,27.52]
[1723205165011,28.3404782,156.61,156.53,27.52]
[1723205165216,28.3404782,156.61,156.5,20.37647]
[1723205165217,6.1891,156.6,156.5,20.37647]
[1723205165518,6.1891,156.6,156.55,27.52]
[1723205165817,7.78588755,156.6,156.53,35.29]
[1723205166123,6.1891,156.6,156.53,35.29]
[1723205166617,0.8204782,156.61,156.59,35.29]
[1723205167883,0.8204782,156.61,156.56,35.29]
[1723205168094,0.8204782,156.61,156.57,20.0]
[1723205169510,0.8204782,156.61,156.58,1.27711674]
[1723205169826,0.8204782,156.61,156.57,20.0]
[1723205170320,0.8204782,156.61,156.56,35.29]
[1723205172013,0.8204782,156.61,156.57,0.12549]
[1723205172230,0.8204782,156.61,156.58,35.29]
[1723205173222,0.8204782,156.61,156.59,1.27707783]
[1723205174133,0.8204782,156.61,156.58,35.29]
[1723205174616,0.8204782,156.61,156.59,1.27708488]
[1723205175018,0.8204782,156.61,156.58,35.29]
[1723205178422,0.8204782,156.61,156.57,0.12549]
[1723205178616,0.8204782,156.61,156.57,20.0]
[1723205179402,0.8204782,156.61,156.54,35.29]
[1723205179601,8.03811557,156.6,156.52,35.29]
[1723205179834,15.7073,156.59,156.5,35.29]
[1723205180127,43.27349913,156.58,156.48,35.29]
[1723205180429,55.54098,156.58,156.48,35.29]
[1723205180729,20.0,156.58,156.5,35.29]
[1723205181027,15.7073,156.59,156.52,35.29]
[1723205181226,15.7073,156.59,156.54,35.29]
[1723205181624,15.7073,156.59,156.52,35.29]
[1723205181836,15.7073,156.59,156.53,0.12549]
[1723205182127,1.59683601,156.58,156.5,35.29]
[1723205182306,15.7073,156.59,156.51,20.12549]
[1723205184133,36.88697596,156.58,156.48,35.29]
[1723205184347,1.59722156,156.57,156.49,45.12549]
[1723205184542,1.59722156,156.57,156.49,45.0]
[1723205184911,55.29,156.58,156.49,45.0]
[1723205185110,20.0,156.58,156.5,36.56768576]
[1723205185328,1.59701559,156.57,156.5,35.29]
[1723205185527,1.59701559,156.57,156.49,45.0]
[1723205185829,55.29,156.58,156.5,20.0]
[1723205186235,20.0,156.58,156.5,35.29]
[1723205186415,20.0,156.58,156.51,1.27757221]
[1723205186613,20.0,156.58,156.52,1.27757942]
[1723205186837,20.0,156.58,156.5,35.29]
[1723205187017,20.0,156.58,156.51,0.12549]
[1723205187416,20.0,156.58,156.52,35.29]
[1723205189019,20.0,156.58,156.51,0.12549]
[1723205190416,15.7073,156.59,156.52,35.29]
[1723205190641,15.7073,156.59,156.51,0.25098]
[1723205190642,15.7073,156.59,156.54,35.29]
[1723205191152,15.7073,156.59,156.56,35.29]
[1723205191330,15.7073,156.59,156.58,35.29]
[1723205192322,15.7073,156.59,156.55,0.12549]
[1723205192542,15.7073,156.59,156.5,45.0]
[1723205192543,1.59670815,156.58,156.52,35.29]
[1723205192721,15.7073,156.59,156.53,20.0]
[1723205193122,15.7073,156.59,156.54,35.29]
[1723205193722,15.7073,156.59,156.56,27.44]
[1723205195443,15.7073,156.59,156.55,27.56549]
[1723205196050,15.7073,156.59,156.54,27.44]
[1723205196719,15.7073,156.59,156.56,27.44]
[1723205196947,15.7073,156.59,156.58,27.44]
[1723205197315,0.8204782,156.61,156.58,27.44]
[1723205197636,0.8204782,156.61,156.59,27.44]
[1723205197830,0.8204782,156.61,156.58,27.44]
[1723205198032,0.8204782,156.61,156.57,27.56549]
[1723205198339,16.4842,156.59,156.53,27.44]
[1723205198549,1.5967932,156.58,156.53,27.44]
[1723205198931,45.52111525,156.59,156.52,27.44]
[1723205199136,33.5955,156.58,156.51,27.44]
[1723205199333,29.03697645,156.57,156.5,27.44]
[1723205199725,1.59697645,156.57,156.48,35.31]
[1723205199926,6.1555,156.58,156.5,35.31]
[1723205200151,6.1555,156.58,156.52,35.31]
[1723205201041,1.59694803,156.57,156.48,35.31]
[1723205201248,1.59694803,156.57,156.49,20.0]
[1723205203239,1.59694803,156.57,156.48,35.43549]
[1723205203240,15.8958,156.55,156.46,35.31]
[1723205203440,1.59747066,156.54,156.46,35.31]
[1723205203849,21.59747066,156.54,156.46,35.31]
[1723205204057,6.115,156.53,156.44,35.31]
[1723205204235,21.59770118,156.52,156.44,35.31]
[1723205204422,1.59770204,156.51,156.44,35.31]
[1723205204621,1.59770204,156.51,156.42,35.31]
[1723205204845,20.0,156.52,156.44,35.31]
[1723205206752,20.0,156.52,156.45,0.12549]
[1723205208020,20.0,156.52,156.46,35.31]
[1723205208949,1.59761962,156.51,156.45,0.12549]
[1723205209320,20.0,156.52,156.45,0.12549]
[1723205209725,20.0,156.52,156.46,35.31]
[1723205210643,20.0,156.52,156.48,35.31]
[1723205210852,6.115,156.53,156.5,35.31]
[1723205211156,15.8958,156.55,156.51,1.2777183]
[1723205211323,15.8958,156.55,156.5,35.31]
[1723205212553,15.8958,156.55,156.49,0.12549]
[1723205213459,15.8958,156.55,156.5,35.31]
[1723205213935,15.8958,156.55,156.49,0.12549]
[1723205215057,15.8958,156.55,156.49,45.12549]
[1723205218058,15.8958,156.55,156.5,36.58770858]
[1723205218225,15.8958,156.55,156.54,35.31]
[1723205218430,16.5991,156.6,156.54,35.31]
[1723205218639,16.5991,156.6,156.55,1.27731776]
[1723205218853,16.5991,156.6,156.56,35.31]
[1723205219747,16.5991,156.6,156.54,35.31]
[1723205219944,16.5991,156.6,156.56,35.31]
[1723205220138,16.5991,156.6,156.57,1.27715117]
[1723205220336,16.5991,156.6,156.56,35.31]
[1723205220641,16.5991,156.6,156.55,0.12549]
[1723205220844,16.5991,156.6,156.55,20.12549]
[1723205221249,16.5991,156.6,156.54,35.31]
[1723205221633,16.5991,156.6,156.55,0.12549]
[1723205221835,16.5991,156.6,156.57,27.44]
[1723205222157,16.5991,156.6,156.58,27.44]
[1723205222738,16.5991,156.6,156.56,27.44]
[1723205223066,16.5991,156.6,156.58,27.44]
[1723205223232,7.0364782,156.61,156.57,0.12549]
[1723205223233,0.8204782,156.61,156.59,28.71710865]
[1723205223434,0.8204782,156.61,156.6,27.44]
[1723205223630,0.8204782,156.61,156.6,27.56549]
[1723205223837,0.8204782,156.61,156.6,72.69098]
[1723205224156,10.00464623,156.71,156.6,72.69098]
[1723205224157,22.469,156.69,156.61,0.12549]
[1723205224440,22.469,156.69,156.66,27.44]
[1723205225263,22.469,156.69,156.65,27.44]
[1723205226068,22.469,156.69,156.64,27.44]
[1723205226561,22.469,156.69,156.65,27.44]
[1723205226735,22.469,156.69,156.66,28.71652817]
[1723205227062,22.469,156.69,156.65,27.44]
[1723205227359,1.59566251,156.68,156.62,27.44]
[1723205227563,29.03566251,156.68,156.61,72.44]
[1723205227860,21.59566251,156.68,156.61,45.0]
[1723205228071,21.59566251,156.68,156.6,45.0]
[1723205228765,21.59566251,156.68,156.61,0.12549]
[1723205229164,20.0,156.68,156.59,35.26]
[1723205229363,55.26,156.68,156.59,35.26]
[1723205229670,20.0,156.68,156.6,1.27700788]
[1723205229838,20.0,156.68,156.61,35.26]
[1723205230154,20.0,156.68,156.62,1.27673388]
[1723205230460,20.0,156.68,156.61,35.26]
[1723205231352,22.469,156.69,156.63,35.38549]
[1723205231571,22.469,156.69,156.64,0.12549]
[1723205231750,22.469,156.69,156.65,35.26]
[1723205233173,16.0124,156.69,156.65,36.53646988]
[1723205233469,10.00280736,156.73,156.68,0.12549]
[1723205233470,21.5326,156.73,156.68,0.12549]
[1723205233647,21.5326,156.73,156.7,35.26]
[1723205234341,21.5326,156.73,156.68,35.38549]
[1723205234563,21.5326,156.73,156.68,35.26]
[1723205235235,21.5326,156.73,156.67,0.12549]
[1723205235236,15.1908,156.73,156.7,35.26]
[1723205236665,15.1908,156.73,156.69,0.12549]
[1723205236851,15.1908,156.73,156.69,45.12549]
[1723205237366,15.1908,156.73,156.7,35.26]
[1723205238456,15.1908,156.73,156.71,1.27606452]
[1723205238945,15.1908,156.73,156.7,35.26]
[1723205239152,15.1908,156.73,156.71,0.12549]
[1723205239975,15.1908,156.73,156.7,35.26]
[1723205240146,15.1908,156.73,156.69,45.12549]
[1723205240345,15.1908,156.73,156.7,0.12549]
[1723205241766,15.1908,156.73,156.69,45.0]
[1723205242148,15.1908,156.73,156.7,35.26]
[1723205244675,15.1908,156.73,156.68,35.38549]
[1723205245762,15.1908,156.73,156.69,0.12549]
[1723205246661,15.1908,156.73,156.7,35.26]
[1723205247847,15.1908,156.73,156.71,27.39]
[1723205248787,15.1908,156.73,156.7,27.39]
[1723205249150,15.1908,156.73,156.68,27.39]
[1723205249664,15.1908,156.73,156.69,27.39]
[1723205249866,15.1908,156.73,156.7,28.66617352]
[1723205250173,15.1908,156.73,156.71,27.39]
[1723205251984,15.1908,156.73,156.7,0.12549]
[1723205252175,15.1908,156.73,156.69,27.39]
[1723205253571,15.1908,156.73,156.7,28.66614755]
[1723205253781,15.1908,156.73,156.71,27.39]
[1723205254485,15.1908,156.73,156.7,27.39]
[1723205255276,42.5808,156.73,156.56,47.39]
[1723205255476,27.39,156.7,156.63,27.39]
[1723205255789,27.39,156.69,156.63,27.39]
[1723205255961,15.9306,156.68,156.62,27.39]
[1723205256170,15.9306,156.68,156.57,2.55877209]
[1723205256171,43.3206,156.68,156.61,27.39]
[1723205256983,33.4317,156.66,156.59,27.39]
[1723205257284,27.39,156.65,156.57,27.39]
[1723205257790,28.98634977,156.64,156.57,27.39]
[1723205258075,1.59634977,156.64,156.58,27.39]
[1723205258458,28.98634977,156.64,156.57,27.39]
[1723205258663,28.98634977,156.64,156.51,8.570849]
[1723205258664,16.3975,156.63,156.56,27.39]
[1723205258854,16.3975,156.63,156.59,27.39]
[1723205259056,16.3975,156.63,156.61,27.39]
[1723205259271,16.3975,156.63,156.6,1.27696129]
[1723205259272,16.3975,156.63,156.62,27.39]
[1723205260477,16.3975,156.63,156.56,29.87533012]
[1723205260478,16.3975,156.63,156.61,27.39]
[1723205260675,16.3975,156.63,156.62,27.39]
[1723205261069,16.3975,156.63,156.61,27.39]
[1723205261280,16.3975,156.63,156.62,27.39]
[1723205261992,16.3975,156.63,156.61,27.39]
[1723205262280,16.3975,156.63,156.6,27.39]
[1723205262661,16.3975,156.63,156.61,27.39]
[1723205263581,16.3975,156.63,156.62,28.66687948]
[1723205263885,6.0417,156.66,156.62,35.25]
[1723205264067,6.0417,156.66,156.63,1.27673767]
[1723205264879,6.0417,156.66,156.62,35.25]
[1723205267494,6.0417,156.66,156.63,1.27675457]
[1723205267667,15.8652,156.67,156.64,35.25]
[1723205268062,15.8652,156.67,156.65,0.12549]
[1723205268477,15.8652,156.67,156.64,35.25]
[1723205268689,15.8652,156.67,156.62,35.25]
[1723205268894,15.8652,156.67,156.63,65.12549]
[1723205269480,15.8652,156.67,156.63,20.12549]
[1723205269679,15.8652,156.67,156.63,20.0]
[1723205270694,6.0399,156.7,156.66,35.25]
[1723205271690,6.0399,156.7,156.64,80.37549]
[1723205278092,6.0399,156.7,156.66,35.25]
[1723205278299,6.0399,156.7,156.67,1.2764001]
[1723205278486,6.0399,156.7,156.66,35.25]
[1723205278673,6.0399,156.7,156.64,80.37549]
[1723205279291,7.63551578,156.7,156.64,80.37549]
[1723205279792,7.63551558,156.7,156.62,35.25]
[1723205280673,20.0,156.69,156.62,35.25]
[1723205280877,1.59592777,156.68,156.62,35.25]
[1723205281504,17.60402643,156.67,156.53,3.3028]
[1723205281704,61.7043,156.66,156.55,35.25]
[1723205281869,1.59639951,156.65,156.55,35.25]
[1723205282069,16.0081,156.63,156.55,35.25]
[1723205282298,1.59651926,156.62,156.55,35.25]
[1723205282500,16.0081,156.63,156.55,35.25]
[1723205282670,16.0081,156.63,156.57,35.25]
[1723205283001,16.0081,156.63,156.59,35.25]
[1723205283295,16.0081,156.63,156.6,1.27695119]
[1723205283901,16.0081,156.63,156.59,35.25]
[1723205284069,16.0081,156.63,156.6,0.12549]
[1723205284688,16.0081,156.63,156.55,35.25]
[1723205284896,16.0081,156.63,156.53,35.25]
[1723205284897,1.59615211,156.62,156.53,35.25]
[1723205285101,6.0518,156.61,156.53,35.25]
[1723205285403,36.84662466,156.6,156.51,35.25]
[1723205285574,15.8504,156.58,156.49,35.25]
[1723205285895,15.8504,156.58,156.46,6.1519]
[1723205285896,29.0569638,156.57,156.5,27.46]
[1723205286397,33.8811,156.56,156.49,27.46]
[1723205287189,29.05712292,156.55,156.48,27.46]
[1723205287392,29.05712292,156.55,156.46,27.46]
[1723205287393,27.46,156.53,156.46,27.46]
[1723205287597,15.3734,156.51,156.46,27.46]
[1723205287892,15.3734,156.51,156.4,28.73793751]
[1723205287893,15.3734,156.51,156.47,27.46]
[1723205288308,15.3734,156.51,156.48,27.46]
[1723205288505,15.3734,156.51,156.47,27.46]
[1723205289214,15.3734,156.51,156.5,27.46]
[1723205289513,15.7306,156.55,156.5,27.58549]
[1723205289813,15.7306,156.55,156.52,27.46]
[1723205291494,15.7306,156.55,156.53,28.73755585]
[1723205291688,15.7306,156.55,156.54,27.46]
[1723205292399,15.7306,156.55,156.51,27.46]
[1723205292594,15.7306,156.55,156.5,27.58549]
[1723205292810,15.7306,156.55,156.51,20.0]
[1723205293025,15.7306,156.55,156.51,47.46]
[1723205293215,15.7306,156.55,156.51,20.0]
[1723205293585,15.7306,156.55,156.51,47.46]
[1723205293902,15.7306,156.55,156.53,27.46]
[1723205294415,15.7306,156.55,156.52,27.46]
[1723205295787,15.7306,156.55,156.51,20.12549]
[1723205295999,15.7306,156.55,156.52,0.12549]
[1723205296209,15.7306,156.55,156.51,27.46]
[1723205296396,15.7306,156.55,156.5,27.71098]
[1723205296698,27.46,156.54,156.47,27.46]
[1723205296899,15.7306,156.55,156.46,27.46]
[1723205296900,29.0574044,156.53,156.46,27.46]
[1723205297111,29.0574044,156.53,156.45,27.46]
[1723205297112,27.46,156.52,156.45,27.46]
[1723205297319,1.59756476,156.51,156.45,27.46]
[1723205297521,27.46,156.49,156.42,27.46]
[1723205297698,15.2923,156.48,156.42,27.46]
[1723205297894,15.2923,156.48,156.43,27.46]
[1723205298216,15.2923,156.48,156.46,27.46]
[1723205299090,15.2923,156.48,156.45,27.46]
[1723205299992,15.2923,156.48,156.46,27.46]
[1723205300726,15.2923,156.48,156.45,27.46]
[1723205302224,15.5418,156.52,156.47,27.46]
[1723205302423,15.5418,156.52,156.49,27.46]
[1723205302601,15.5418,156.52,156.5,28.73778446]
[1723205303110,27.46,156.51,156.36,6.4922]
[1723205303324,27.46,156.51,156.44,27.46]
[1723205303523,15.5418,156.52,156.46,27.46]
[1723205303898,15.5418,156.52,156.47,27.46]
[1723205304134,15.5418,156.52,156.48,27.46]
[1723205305402,15.5418,156.52,156.49,27.46]
[1723205305607,15.5418,156.52,156.51,27.46]
[1723205306233,15.5418,156.52,156.49,27.46]
[1723205306419,15.5418,156.52,156.48,27.46]
[1723205306817,15.5418,156.52,156.49,27.46]
[1723205307008,15.5418,156.52,156.5,27.46]
[1723205308207,15.5418,156.52,156.47,1.40330084]
[1723205308208,15.7457,156.56,156.51,28.73777626]
[1723205308435,15.7457,156.56,156.53,27.46]
[1723205309216,15.7457,156.56,156.54,27.46]
[1723205309734,15.7457,156.56,156.55,27.46]
[1723205309918,6.0855,156.58,156.55,27.46]
[1723205310120,6.0855,156.58,156.56,28.73734569]
[1723205310321,15.6097,156.6,156.57,27.46]
[1723205310820,15.6097,156.6,156.56,27.46]
[1723205312027,15.6097,156.6,156.57,27.46]
[1723205312521,15.6097,156.6,156.58,27.46]
[1723205312833,15.6097,156.6,156.59,27.46]
[1723205313223,15.6097,156.6,156.58,27.46]
[1723205314314,6.4731,156.62,156.58,27.46]
[1723205314511,15.8098,156.64,156.6,27.46]
[1723205314727,15.8098,156.64,156.59,1.40251091]
[1723205314728,15.8098,156.64,156.61,28.73692279]
[1723205315037,15.8098,156.64,156.62,27.46]
[1723205315335,15.8098,156.64,156.62,27.58549]
[1723205315524,15.8098,156.64,156.63,27.46]
[1723205316122,6.3339,156.66,156.63,27.58549]
[1723205316323,15.8534,156.68,156.64,28.73664169]
[1723205316628,15.8534,156.68,156.63,27.58549]
[1723205317039,15.8534,156.68,156.64,0.12549]
[1723205317722,15.8534,156.68,156.62,27.46]
[1723205317931,43.3134,156.68,156.61,27.46]
[1723205318250,15.8534,156.68,156.62,72.58549]
[1723205318455,15.8534,156.68,156.63,27.46]
[1723205318745,15.8534,156.68,156.62,72.58549]
[1723205319322,17.44920292,156.68,156.62,72.58549]
[1723205321026,15.8534,156.68,156.62,72.58549]
[1723205321221,15.8534,156.68,156.65,27.46]
[1723205321451,15.8534,156.68,156.66,28.73650679]
[1723205321653,15.8534,156.68,156.66,27.46]
[1723205322757,15.8534,156.68,156.67,27.46]
[1723205322957,15.5889,156.72,156.67,27.58549]
[1723205323246,15.5889,156.72,156.68,27.58549]
[1723205323430,15.5889,156.72,156.67,0.12549]
[1723205323630,17.18427581,156.72,156.67,0.12549]
[1723205324359,15.5889,156.72,156.67,27.58549]
[1723205324839,15.5889,156.72,156.68,27.46]
[1723205325534,15.5889,156.72,156.67,0.12549]
[1723205326255,15.5889,156.72,156.67,27.58549]
[1723205326747,15.5889,156.72,156.66,27.46]
[1723205327057,15.5889,156.72,156.65,27.58549]
[1723205327556,15.5889,156.72,156.66,27.46]
[1723205327734,15.5889,156.72,156.67,0.12549]
[1723205329342,15.5889,156.72,156.67,27.58549]
[1723205330156,15.5889,156.72,156.67,0.12549]
[1723205330452,15.5889,156.72,156.67,45.12549]
[1723205330951,15.5889,156.72,156.67,72.58549]
[1723205331151,15.5889,156.72,156.7,27.46]
[1723205331461,15.5889,156.72,156.69,0.12549]
[1723205331752,15.5889,156.72,156.67,45.0]
[1723205332651,15.5889,156.72,156.68,27.58549]
[1723205332852,15.5889,156.72,156.69,72.58549]
[1723205333045,15.5889,156.72,156.69,0.12549]
[1723205333255,15.5889,156.72,156.67,27.46]
[1723205333444,15.5889,156.72,156.68,0.12549]
[1723205333645,15.5889,156.72,156.68,45.12549]
[1723205334859,15.5889,156.72,156.68,72.58549]
[1723205335059,15.5889,156.72,156.68,0.12549]
[1723205335541,15.5889,156.72,156.67,65.25098]
[1723205335946,15.5889,156.72,156.67,92.71098]
[1723205336432,9.99981872,156.76,156.7,27.46]
[1723205336629,0.8204782,156.77,156.67,65.25098]
[1723205336630,0.8204782,156.77,156.74,27.46]
[1723205337455,0.8204782,156.77,156.75,1.27571432]
[1723205337642,0.8204782,156.77,156.74,27.46]
[1723205338959,0.8204782,156.77,156.73,0.12549]
[1723205339468,0.8204782,156.77,156.7,27.58549]
[1723205339762,0.8204782,156.77,156.71,92.58549]
[1723205339933,0.8204782,156.77,156.73,27.58549]
[1723205340138,0.8204782,156.77,156.74,0.12549]
[1723205340346,0.8204782,156.77,156.73,27.46]
[1723205340553,0.8204782,156.77,156.71,92.46]
[1723205340763,0.8204782,156.77,156.72,0.12549]
[1723205341263,0.8204782,156.77,156.7,27.46]
[1723205341438,0.8204782,156.77,156.68,27.46]
[1723205341439,27.46,156.75,156.68,27.46]
[1723205341639,28.2804782,156.77,156.7,27.46]
[1723205341857,0.8204782,156.77,156.72,27.46]
[1723205343256,0.8204782,156.77,156.73,27.46]
[1723205343452,0.8204782,156.77,156.75,27.46]
[1723205343848,0.8204782,156.77,156.74,27.46]
[1723205344048,0.8204782,156.77,156.72,27.46]
[1723205344666,0.8204782,156.77,156.71,27.58549]
[1723205344867,0.8204782,156.77,156.7,27.46]
[1723205345575,28.2804782,156.77,156.7,27.46]
[1723205346164,1.59501989,156.76,156.69,27.46]
[1723205346365,6.2091,156.74,156.68,27.46]
[1723205346553,15.897,156.73,156.67,27.46]
[1723205346748,17.49238098,156.73,156.67,27.46]
[1723205346951,15.897,156.73,156.67,27.46]
[1723205347168,15.897,156.73,156.68,27.46]
[1723205347670,15.897,156.73,156.67,27.46]
[1723205347881,15.897,156.73,156.68,27.46]
[1723205348183,15.897,156.73,156.66,27.46]
[1723205348550,15.897,156.73,156.68,27.46]
[1723205348751,15.897,156.73,156.69,28.73623261]
[1723205348952,15.897,156.73,156.71,27.46]
[1723205349857,15.897,156.73,156.7,27.46]
[1723205350176,15.897,156.73,156.67,27.58549]
[1723205350389,43.357,156.73,156.66,27.46]
[1723205350674,43.357,156.73,156.67,27.46]
[1723205350878,15.897,156.73,156.67,27.46]
[1723205351176,15.897,156.73,156.69,27.46]
[1723205351381,15.897,156.73,156.7,28.73612399]
[1723205351958,15.897,156.73,156.7,27.46]
[1723205352162,15.897,156.73,156.71,27.46]
[1723205352367,15.897,156.73,156.72,27.46]
[1723205352577,15.897,156.73,156.71,27.46]
[1723205354459,15.897,156.73,156.69,27.58549]
[1723205354683,15.897,156.73,156.68,27.46]
[1723205355557,15.897,156.73,156.69,27.46]
[1723205355965,15.897,156.73,156.7,27.46]
[1723205356181,15.897,156.73,156.72,27.46]
[1723205356488,16.9714782,156.77,156.72,27.46]
[1723205356653,16.9714782,156.77,156.71,0.12549]
[1723205356654,16.9714782,156.77,156.74,27.46]
[1723205356854,16.9714782,156.77,156.73,0.12549]
[1723205357054,29.05471092,156.76,156.67,0.12549]
[1723205357280,29.05471092,156.76,156.69,27.46]
[1723205357484,29.05471092,156.76,156.68,27.46]
[1723205357654,27.46,156.75,156.67,27.46]
[1723205358379,27.46,156.73,156.66,20.0]
[1723205358679,27.46,156.71,156.64,27.46]
[1723205358884,27.46,156.73,156.65,27.46]
[1723205359189,27.46,156.73,156.66,27.46]
[1723205359681,29.05535142,156.73,156.66,27.46]
[1723205359864,27.46,156.73,156.66,27.46]
[1723205360077,50.1277,156.74,156.66,27.46]
[1723205360281,20.0,156.73,156.67,45.12549]
[1723205360481,20.0,156.73,156.67,0.12549]
[1723205360652,20.0,156.73,156.66,27.46]
[1723205361760,22.6677,156.74,156.68,27.46]
[1723205361967,22.6677,156.74,156.7,27.46]
[1723205362492,22.6677,156.74,156.68,27.46]
[1723205362781,27.46,156.73,156.66,27.46]
[1723205363361,1.59545917,156.72,156.66,27.46]
[1723205363564,27.46,156.73,156.67,0.12549]
[1723205363759,50.1277,156.74,156.67,27.58549]
[1723205364194,22.6677,156.74,156.69,27.46]
[1723205365392,22.6677,156.74,156.71,27.46]
[1723205366001,22.6677,156.74,156.7,27.46]
[1723205367014,22.6677,156.74,156.71,27.46]
[1723205367298,22.6677,156.74,156.69,1.52702004]
[1723205367299,16.4922,156.74,156.72,27.46]
[1723205367476,0.8204782,156.77,156.73,27.46]